fUST/lending_fUST_20250202
["ID","MTS","AMOUNT","RATE_DAILY","PERIOD"]
[351235947,1738464648003,-500.0,0.00016712,2]
[351235948,1738464648015,-500.0,0.00016712,2]
[351235949,1738464648024,-500.0,0.00016712,2]
[351235950,1738464648034,-500.0,0.00016712,2]
[351235951,1738464648043,-622.06035062,0.00016712,2]
[351235952,1738464648053,-500.0,0.00016712,2]
[351235953,1738464648063,-500.0,0.00016712,2]
[351235954,1738464648073,-500.0,0.00016712,2]
[351235955,1738464648083,-500.0,0.00016712,2]
[351235956,1738464648092,-500.0,0.00016712,2]
[351235957,1738464648102,-500.0,0.00016712,2]
[351235958,1738464648111,-500.0,0.00016712,2]
[351235959,1738464648121,-500.0,0.00016712,2]
[351235960,1738464648130,-500.0,0.00016712,2]
[351235961,1738464648140,-500.0,0.00016712,2]
[351235962,1738464648149,-500.0,0.00016712,2]
[351235963,1738464648159,-500.0,0.00016712,2]
[351235964,1738464648169,-342.19807783,0.00016712,2]
[351235965,1738464648179,-500.0,0.00016712,2]
[351235966,1738464648189,-500.0,0.00016712,2]
[351235967,1738464648198,-500.0,0.00016712,2]
[351235968,1738464648208,-560.60226454,0.00016712,2]
[351235969,1738464648217,-504.59289163,0.00016712,2]
[351235970,1738464648227,-500.0,0.00016712,2]
[351235971,1738464648236,-511.13139822,0.00016712,2]
[351235972,1738464648246,-500.0,0.00016712,2]
[351235973,1738464648256,-151.0,0.00016712,2]
[351235974,1738464648266,-500.0,0.00016712,2]
[351235975,1738464648275,-297.581094,0.00016712,2]
[351235976,1738464648284,-500.0,0.00016712,2]
[351235977,1738464648294,-297.581094,0.00016712,2]
[351235978,1738464648303,-500.0,0.00016712,2]
[351235979,1738464648312,-505.63008925,0.00016712,2]
[351235980,1738464648322,-500.0,0.00016712,2]
[351235981,1738464648331,-151.0,0.00016712,2]
[351235982,1738464648340,-504.07394181,0.00016712,2]
[351235983,1738464648350,-151.0,0.00016712,2]
[351235984,1738464648359,-500.0,0.00016712,2]
[351235985,1738464648368,-151.0,0.00016712,2]
[351235986,1738464648378,-507.39221855,0.00016712,2]
[351235987,1738464648387,-500.0,0.00016712,2]
[351235988,1738464648397,-500.0,0.00016712,2]
[351235989,1738464648406,-433.51736992,0.00016712,2]
[351235990,1738464648415,-502.14217508,0.00016712,2]
[351235991,1738464648425,-500.0,0.00016712,2]
[351235992,1738464648434,-500.0,0.00016712,2]
[351235993,1738464648443,-500.0,0.00016712,2]
[351235994,1738464648452,-527.77027261,0.00016712,2]
[351235995,1738464648462,-500.0,0.00016712,2]
[351235996,1738464648471,-505.33138913,0.00016712,2]
[351235997,1738464648481,-500.0,0.00016712,2]
[351235998,1738464648490,-500.0,0.00016712,2]
[351235999,1738464648499,-500.0,0.00016712,2]
[351236000,1738464648508,-500.0,0.00016712,2]
[351236001,1738464648517,-7720.07606539,0.00016712,2]
[351236002,1738464648671,-1605.63329206,0.00016712,2]
[351236003,1738464648681,-471.03760589,0.00016712,2]
[351236004,1738464648697,-1384.78303666,0.00016712,2]
[351236005,1738464648706,-500.0,0.00016712,2]
[351236006,1738464648715,-500.0,0.00016712,2]
[351236007,1738464648725,-519.10542643,0.00016712,2]
[351236008,1738464648734,-227.694659,0.00016712,2]
[351236009,1738464648744,-227.694659,0.00016712,2]
[351236010,1738464648753,-500.0,0.00016712,2]
[351236011,1738464648762,-504.34064855,0.00016712,2]
[351236012,1738464648771,-503.62957129,0.00016712,2]
[351236013,1738464648781,-161.2779381,0.00016712,2]
[351236014,1738464648792,-338.7220619,0.00016712,2]
[351236015,1738464648801,-500.0,0.00016712,2]
[351236016,1738464648811,-98.12668488,0.00016712,2]
[351236017,1738464648827,-401.87331512,0.00016712,2]
[351236018,1738464648836,-347.71175817,0.00016712,2]
[351236019,1738464649047,-500.0,0.00016438,2]
[351236020,1738464649058,-501.357401,0.00016438,2]
[351236021,1738464649068,-500.0,0.00016575,2]
[351236022,1738464649077,-151.0,0.00016575,2]
[351236023,1738464649086,-183.27101057,0.00016712,2]
[351236024,1738464649096,-500.0,0.00016712,2]
[351236025,1738464649106,-160.300728,0.00016712,2]
[351236026,1738464649115,-500.0,0.00016712,2]
[351236027,1738464649125,-500.0,0.00016712,2]
[351236028,1738464649134,-160.300728,0.00016712,2]
[351236029,1738464649143,-509.54731386,0.00016712,2]
[351236030,1738464649154,-500.0,0.00016712,2]
[351236031,1738464649163,-500.0,0.00016712,2]
[351236032,1738464649172,-439.09332747,0.00016712,2]
[351236033,1738464649183,-151.0,0.00016712,2]
[351236034,1738464649192,-151.0,0.00016712,2]
[351236035,1738464649201,-500.0,0.00016712,2]
[351236036,1738464649210,-512.32768739,0.00016712,2]
[351236037,1738464649220,-500.0,0.00016712,2]
[351236038,1738464649230,-504.29768973,0.00016712,2]
[351236039,1738464649239,-500.0,0.00016712,2]
[351236040,1738464649249,-500.0,0.00016712,2]
[351236041,1738464649258,-3713.4,0.00016712,2]
[351236042,1738464649268,-500.0,0.00016712,2]
[351236043,1738464649279,-479.51523075,0.00016712,2]
[351236044,1738464649289,-2207.72,0.00016712,2]
[351236045,1738464649298,-500.0,0.00016712,2]
[351236046,1738464649309,-500.0,0.00016712,2]
[351236047,1738464649318,-1650.26,0.00016712,2]
[351236048,1738464649328,-500.0,0.00016712,2]
[351236049,1738464649337,-500.0,0.00016712,2]
[351236050,1738464649347,-650.11,0.00016712,2]
[351236051,1738464649357,-500.0,0.00016712,2]
[351236052,1738464649367,-500.0,0.00016712,2]
[351236053,1738464649377,-603.6479786,0.00016712,2]
[351236054,1738464649387,-505.34900326,0.00016712,2]
[351236055,1738464649397,-539.23,0.00016712,2]
[351236056,1738464649407,-514.86912118,0.00016712,2]
[351236057,1738464649417,-151.0,0.00016712,2]
[351236058,1738464649426,-500.0,0.00016712,2]
[351236059,1738464649437,-500.0,0.00016712,2]
[351236060,1738464649446,-515.81162696,0.00016712,2]
[351236061,1738464649456,-500.0,0.00016712,2]
[351236062,1738464649467,-500.0,0.00016712,2]
[351236063,1738464649477,-151.0,0.00016712,2]
[351236064,1738464649486,-502.55463291,0.00016712,2]
[351236065,1738464649496,-500.0,0.00016712,2]
[351236066,1738464649506,-500.0,0.00016712,2]
[351236067,1738464649515,-500.0,0.00016712,2]
[351236068,1738464649525,-151.0,0.00016712,2]
[351236069,1738464649535,-500.0,0.00016712,2]
[351236070,1738464649544,-500.0,0.00016712,2]
[351236071,1738464649554,-500.0,0.00016712,2]
[351236072,1738464649564,-510.76807667,0.00016712,2]
[351236073,1738464649574,-500.0,0.00016712,2]
[351236074,1738464649583,-500.0,0.00016712,2]
[351236075,1738464649593,-217.86279502,0.00016712,2]
[351236077,1738464985650,500.0,0.00014964,2]
[351236080,1738465338533,177.232333,0.00013973,2]
[351236156,1738465832871,-633.851856,0.00015216,2]
[351236158,1738465832881,-2476.34522305,0.00015227,2]
[351236160,1738465832890,-300.0,0.0001538,2]
[351236162,1738465832899,-345.56243075,0.00015381,2]
[351236164,1738465832908,-7646.04586473,0.00015382,2]
[351236166,1738465832919,-14828.30550729,0.00015382,2]
[351236168,1738465832931,-2425.64862798,0.00015382,2]
[351236170,1738465832940,-166.0,0.00015422,2]
[351236172,1738465832950,-500.0,0.00015422,2]
[351236174,1738465832959,-500.0,0.00015422,2]
[351236176,1738465832969,-385.61153336,0.00015422,2]
[351236178,1738465832978,-387.2557382,0.00016138,2]
[351236180,1738465832987,-706.68094408,0.00016238,2]
[351236184,1738465833011,-1200.000002,0.00016238,2]
[351236186,1738465833030,-1054.13538286,0.00016238,2]
[351236189,1738465833046,-250.5,0.00016238,2]
[351236192,1738465833060,-883.74009408,0.00016238,2]
[351236194,1738465833073,-175.32100335,0.00016338,2]
[351236197,1738465833087,-387.25573816,0.0001639,2]
[351236199,1738465833099,-5407.519808,0.000164,2]
[351236201,1738465833114,-500.0,0.00016437,2]
[351236203,1738465833129,-500.0,0.00016437,2]
[351236205,1738465833142,-518.94305429,0.00016437,2]
[351236207,1738465833155,-360.14653309,0.00016437,2]
[351236209,1738465833167,-500.0,0.00016437,2]
[351236211,1738465833178,-500.0,0.00016437,2]
[351236214,1738465833191,-500.0,0.00016437,2]
[351236216,1738465833204,-555.59925409,0.00016437,2]
[351236218,1738465833218,-500.0,0.00016437,2]
[351236219,1738465833231,-500.0,0.00016437,2]
[351236220,1738465833244,-500.0,0.00016437,2]
[351236221,1738465833256,-500.0,0.00016437,2]
[351236223,1738465833269,-363.9794678,0.00016437,2]
[351236226,1738465833282,-500.0,0.00016437,2]
[351236228,1738465833296,-500.0,0.00016437,2]
[351236229,1738465833308,-500.0,0.00016437,2]
[351236231,1738465833321,-500.0,0.00016437,2]
[351236232,1738465833334,-500.0,0.00016437,2]
[351236233,1738465833348,-500.0,0.00016437,2]
[351236235,1738465833361,-500.0,0.00016437,2]
[351236237,1738465833374,-500.0,0.00016437,2]
[351236238,1738465833387,-237.19165585,0.00016437,2]
[351236239,1738465833400,-500.0,0.00016437,2]
[351236240,1738465833415,-500.0,0.00016437,2]
[351236241,1738465833431,-356.84914687,0.00016437,2]
[351236242,1738465833442,-500.0,0.00016437,2]
[351236243,1738465833455,-500.0,0.00016437,2]
[351236244,1738465833467,-500.0,0.00016437,2]
[351236245,1738465833478,-500.0,0.00016437,2]
[351236246,1738465833489,-500.0,0.00016437,2]
[351236247,1738465833505,-500.0,0.00016437,2]
[351236248,1738465833519,-500.0,0.00016437,2]
[351236249,1738465833529,-500.0,0.00016437,2]
[351236250,1738465833540,-200.87657873,0.00016437,2]
[351236251,1738465833555,-428.50754096,0.00016437,2]
[351236252,1738465833566,-500.0,0.00016437,2]
[351236253,1738465833579,-4061.4582659,0.00016438,2]
[351236254,1738465833594,-502.55030494,0.00016438,2]
[351236255,1738465833608,-501.57565455,0.00016438,2]
[351236256,1738465833620,-622.59619855,0.00016438,2]
[351236257,1738465833632,-501.78549675,0.00016438,2]
[351236258,1738465833644,-189.09172923,0.00016438,2]
[351236259,1738465833657,-500.0,0.00016438,2]
[351236260,1738465833671,-503.6420647,0.00016438,2]
[351236261,1738465833685,-500.0,0.00016438,2]
[351236262,1738465833697,-503.56974151,0.00016438,2]
[351236263,1738465833708,-505.0811641,0.00016438,2]
[351236264,1738465833719,-500.0,0.00016438,2]
[351236265,1738465833730,-500.0,0.00016438,2]
[351236266,1738465833741,-500.0,0.00016438,2]
[351236267,1738465833752,-500.0,0.00016438,2]
[351236268,1738465833764,-502.2549291,0.00016438,2]
[351236269,1738465833775,-504.13558274,0.00016438,2]
[351236270,1738465833786,-552.12465141,0.00016438,2]
[351236271,1738465833798,-515.47732607,0.00016438,2]
[351236272,1738465833809,-504.44630711,0.00016438,2]
[351236273,1738465833819,-504.88703297,0.00016438,2]
[351236274,1738465833830,-500.0,0.00016438,2]
[351236275,1738465833843,-500.0,0.00016438,2]
[351236276,1738465833854,-500.0,0.00016438,2]
[351236277,1738465833865,-505.92987176,0.00016438,2]
[351236278,1738465833876,-500.0,0.00016438,2]
[351236279,1738465833888,-500.0,0.00016438,2]
[351236280,1738465833898,-500.0,0.00016438,2]
[351236281,1738465833910,-629.53621773,0.00016438,2]
[351236282,1738465833920,-501.69650908,0.00016438,2]
[351236283,1738465833931,-503.92313274,0.00016438,2]
[351236284,1738465833942,-503.27140551,0.00016438,2]
[351236285,1738465833954,-502.68835035,0.00016438,2]
[351236286,1738465833964,-507.65825246,0.00016438,2]
[351236287,1738465833977,-266.67256438,0.00016438,2]
[351236288,1738465833989,-500.0,0.00016438,2]
[351236289,1738465834001,-502.88701091,0.00016438,2]
[351236290,1738465834012,-512.03276949,0.00016438,2]
[351236291,1738465834023,-502.77117916,0.00016438,2]
[351236292,1738465834034,-502.76000953,0.00016438,2]
[351236293,1738465834046,-502.20325643,0.00016438,2]
[351236294,1738465834058,-196.93508722,0.00016438,2]
[351236295,1738465834069,-500.0,0.00016438,2]
[351236296,1738465834081,-500.0,0.00016438,2]
[351236297,1738465834096,-433.33214648,0.00016438,2]
[351236298,1738465834107,-500.0,0.00016438,2]
[351236299,1738465834119,-500.0,0.00016438,2]
[351236300,1738465834130,-507.43255035,0.00016438,2]
[351236301,1738465834142,-505.94655039,0.00016438,2]
[351236302,1738465834153,-501.55619176,0.00016438,2]
[351236303,1738465834166,-500.0,0.00016438,2]
[351236304,1738465834178,-500.0,0.00016438,2]
[351236305,1738465834190,-500.0,0.00016438,2]
[351236306,1738465834202,-295.94414179,0.00016438,2]
[351236307,1738465834214,-500.0,0.00016438,2]
[351236308,1738465834226,-634.88201566,0.00016438,2]
[351236309,1738465834239,-500.0,0.00016438,2]
[351236310,1738465834249,-502.21385777,0.00016438,2]
[351236311,1738465834422,-500.0,0.00016438,2]
[351236312,1738465834435,-500.0,0.00016438,2]
[351236313,1738465834445,-500.0,0.00016438,2]
[351236314,1738465834455,-500.0,0.00016438,2]
[351236315,1738465834467,-500.0,0.00016438,2]
[351236316,1738465834477,-503.62090026,0.00016438,2]
[351236317,1738465834487,-507.54795284,0.00016438,2]
[351236318,1738465834498,-501.88077622,0.00016438,2]
[351236319,1738465834511,-502.08845189,0.00016438,2]
[351236320,1738465834521,-502.85123144,0.00016438,2]
[351236321,1738465834532,-500.0,0.00016438,2]
[351236322,1738465834542,-508.14646979,0.00016438,2]
[351236323,1738465834552,-500.0,0.00016438,2]
[351236324,1738465834563,-502.9593356,0.00016438,2]
[351236325,1738465834574,-500.0,0.00016438,2]
[351236326,1738465834584,-465.79221858,0.00016438,2]
[351236327,1738465834598,-506.2450638,0.00016438,2]
[351236328,1738465834608,-508.88990587,0.00016438,2]
[351236329,1738465834619,-500.0,0.00016438,2]
[351236330,1738465834630,-500.0,0.00016438,2]
[351236331,1738465834641,-500.0,0.00016438,2]
[351236332,1738465834651,-500.0,0.00016438,2]
[351236333,1738465834661,-509.7898291,0.00016438,2]
[351236334,1738465834671,-501.13368749,0.00016438,2]
[351236335,1738465834681,-504.33975111,0.00016438,2]
[351236336,1738465834691,-500.0,0.00016438,2]
[351236337,1738465834700,-500.0,0.00016438,2]
[351236338,1738465834710,-500.0,0.00016438,2]
[351236339,1738465834720,-500.0,0.00016438,2]
[351236340,1738465834730,-500.0,0.00016438,2]
[351236341,1738465834740,-604.28064741,0.00016438,2]
[351236342,1738465834750,-500.0,0.00016438,2]
[351236343,1738465834760,-500.0,0.00016438,2]
[351236344,1738465834770,-500.0,0.00016438,2]
[351236345,1738465834780,-502.28395219,0.00016438,2]
[351236346,1738465834791,-500.0,0.00016438,2]
[351236347,1738465834800,-500.0,0.00016438,2]
[351236348,1738465834811,-500.0,0.00016438,2]
[351236349,1738465834821,-500.0,0.00016438,2]
[351236350,1738465834830,-501.87037942,0.00016438,2]
[351236351,1738465834841,-500.0,0.00016438,2]
[351236352,1738465834850,-501.86570002,0.00016438,2]
[351236353,1738465834860,-500.0,0.00016438,2]
[351236354,1738465834871,-500.0,0.00016438,2]
[351236355,1738465834881,-501.62511737,0.00016438,2]
[351236356,1738465834891,-502.72580234,0.00016438,2]
[351236357,1738465834901,-513.33717015,0.00016438,2]
[351236358,1738465834910,-504.75786176,0.00016438,2]
[351236359,1738465834919,-537.18992822,0.00016438,2]
[351236360,1738465834929,-500.0,0.00016438,2]
[351236361,1738465834939,-500.0,0.00016438,2]
[351236362,1738465834949,-500.0,0.00016438,2]
[351236363,1738465834959,-501.49701019,0.00016438,2]
[351236364,1738465834969,-500.0,0.00016438,2]
[351236365,1738465834978,-500.0,0.00016438,2]
[351236366,1738465834988,-500.0,0.00016438,2]
[351236367,1738465834998,-508.27783578,0.00016438,2]
[351236368,1738465835007,-502.51901741,0.00016438,2]
[351236369,1738465835017,-312.75129097,0.00016438,2]
[351236370,1738465835027,-500.0,0.00016438,2]
[351236371,1738465835037,-500.0,0.00016438,2]
[351236372,1738465835047,-506.34080744,0.00016438,2]
[351236373,1738465835057,-504.35062579,0.00016438,2]
[351236374,1738465835067,-500.0,0.00016438,2]
[351236375,1738465835077,-387.62118769,0.00016438,2]
[351236376,1738465835087,-201.31922188,0.00016438,2]
[351236377,1738465835096,-500.0,0.00016438,2]
[351236378,1738465835106,-500.0,0.00016438,2]
[351236379,1738465835116,-509.93563079,0.00016438,2]
[351236380,1738465835126,-500.0,0.00016438,2]
[351236381,1738465835135,-500.0,0.00016438,2]
[351236382,1738465835145,-500.0,0.00016438,2]
[351236383,1738465835155,-500.0,0.00016438,2]
[351236384,1738465835164,-500.0,0.00016438,2]
[351236385,1738465835174,-500.0,0.00016438,2]
[351236386,1738465835184,-264.97568326,0.00016438,2]
[351236387,1738465835194,-500.0,0.00016438,2]
[351236388,1738465835203,-500.0,0.00016438,2]
[351236389,1738465835214,-509.73351428,0.00016438,2]
[351236390,1738465835224,-500.0,0.00016438,2]
[351236391,1738465835234,-500.0,0.00016438,2]
[351236392,1738465835244,-500.0,0.00016438,2]
[351236393,1738465835254,-500.0,0.00016438,2]
[351236394,1738465835264,-602.51925313,0.00016438,2]
[351236395,1738465835274,-500.0,0.00016438,2]
[351236396,1738465835285,-195.53403736,0.00016438,2]
[351236397,1738465835296,-500.0,0.00016438,2]
[351236398,1738465835307,-630.00843714,0.00016438,2]
[351236399,1738465835317,-500.0,0.00016438,2]
[351236400,1738465835326,-509.86022738,0.00016438,2]
[351236401,1738465835339,-500.0,0.00016438,2]
[351236402,1738465835350,-495.0,0.00016438,2]
[351236403,1738465835359,-505.96861158,0.00016438,2]
[351236404,1738465835369,-500.0,0.00016438,2]
[351236405,1738465835379,-503.55790493,0.00016438,2]
[351236406,1738465835390,-500.0,0.00016438,2]
[351236407,1738465835400,-500.0,0.00016438,2]
[351236408,1738465835410,-504.85670148,0.00016438,2]
[351236409,1738465835425,-500.0,0.00016438,2]
[351236410,1738465835434,-500.0,0.00016438,2]
[351236411,1738465835443,-502.82497469,0.00016438,2]
[351236412,1738465835452,-503.37824141,0.00016438,2]
[351236413,1738465835462,-500.0,0.00016438,2]
[351236414,1738465835471,-500.0,0.00016438,2]
[351236415,1738465835480,-500.0,0.00016438,2]
[351236416,1738465835489,-500.0,0.00016438,2]
[351236417,1738465835498,-2938.06,0.00016438,2]
[351236418,1738465835509,-500.0,0.00016438,2]
[351236419,1738465835520,-500.0,0.00016438,2]
[351236420,1738465835531,-500.0,0.00016438,2]
[351236421,1738465835541,-500.0,0.00016438,2]
[351236422,1738465835552,-500.0,0.00016438,2]
[351236423,1738465835562,-500.0,0.00016438,2]
[351236424,1738465835572,-508.22663796,0.00016438,2]
[351236425,1738465835582,-505.09110915,0.00016438,2]
[351236426,1738465835599,-500.0,0.00016438,2]
[351236427,1738465835609,-500.0,0.00016438,2]
[351236428,1738465835619,-12842.33,0.00016438,2]
[351236429,1738465835630,-496.66275351,0.00016438,2]
[351236430,1738465835640,-505.57512211,0.00016438,2]
[351236431,1738465835650,-500.0,0.00016438,2]
[351236432,1738465835661,-507.20120319,0.00016438,2]
[351236433,1738465835672,-500.0,0.00016438,2]
[351236434,1738465835682,-502.15033407,0.00016438,2]
[351236435,1738465835693,-500.0,0.00016438,2]
[351236436,1738465835704,-500.0,0.00016438,2]
[351236437,1738465835714,-500.0,0.00016438,2]
[351236438,1738465835724,-501.27277094,0.00016438,2]
[351236439,1738465835734,-500.0,0.00016438,2]
[351236440,1738465835744,-501.63344445,0.00016438,2]
[351236441,1738465835754,-534.12986993,0.00016438,2]
[351236442,1738465835765,-500.0,0.00016438,2]
[351236443,1738465835775,-500.0,0.00016438,2]
[351236444,1738465835786,-500.0,0.00016438,2]
[351236445,1738465835797,-500.0,0.00016438,2]
[351236446,1738465835807,-500.0,0.00016438,2]
[351236447,1738465835817,-500.0,0.00016438,2]
[351236448,1738465835827,-372.48179372,0.00016438,2]
[351236449,1738465835840,-500.0,0.00016438,2]
[351236450,1738465835850,-511.83707674,0.00016438,2]
[351236451,1738465835860,-500.0,0.00016438,2]
[351236452,1738465835870,-500.0,0.00016438,2]
[351236453,1738465835881,-500.0,0.00016438,2]
[351236454,1738465835890,-500.0,0.00016438,2]
[351236455,1738465835900,-500.0,0.00016438,2]
[351236456,1738465835909,-509.97966146,0.00016438,2]
[351236457,1738465835920,-500.0,0.00016438,2]
[351236458,1738465835929,-500.0,0.00016438,2]
[351236459,1738465835940,-2119.26,0.00016438,2]
[351236460,1738465835949,-502.07312631,0.00016438,2]
[351236461,1738465835960,-500.0,0.00016438,2]
[351236462,1738465835970,-500.0,0.00016438,2]
[351236463,1738465835980,-500.0,0.00016438,2]
[351236464,1738465835990,-503.07571443,0.00016438,2]
[351236465,1738465836000,-500.0,0.00016438,2]
[351236466,1738465836010,-500.0,0.00016438,2]
[351236467,1738465836021,-500.0,0.00016438,2]
[351236468,1738465836031,-500.0,0.00016438,2]
[351236469,1738465836042,-1643.35,0.00016438,2]
[351236470,1738465836052,-502.26342672,0.00016438,2]
[351236471,1738465836062,-500.0,0.00016438,2]
[351236472,1738465836072,-500.0,0.00016438,2]
[351236473,1738465836082,-706.3,0.00016438,2]
[351236474,1738465836095,-500.0,0.00016438,2]
[351236475,1738465836105,-500.0,0.00016438,2]
[351236476,1738465836115,-585.43,0.00016438,2]
[351236477,1738465836124,-501.63565593,0.00016438,2]
[351236478,1738465836134,-500.0,0.00016438,2]
[351236479,1738465836144,-565.85,0.00016438,2]
[351236480,1738465836153,-501.60537348,0.00016438,2]
[351236481,1738465836163,-500.0,0.00016438,2]
[351236482,1738465836173,-500.0,0.00016438,2]
[351236483,1738465836183,-500.0,0.00016438,2]
[351236484,1738465836193,-500.0,0.00016438,2]
[351236485,1738465836203,-500.0,0.00016438,2]
[351236486,1738465836213,-500.0,0.00016438,2]
[351236487,1738465836223,-500.0,0.00016438,2]
[351236488,1738465836234,-500.0,0.00016438,2]
[351236489,1738465836244,-500.0,0.00016438,2]
[351236490,1738465836253,-631.7945488,0.00016438,2]
[351236491,1738465836263,-500.0,0.00016438,2]
[351236492,1738465836273,-503.90303921,0.00016438,2]
[351236493,1738465836283,-500.0,0.00016438,2]
[351236494,1738465836292,-500.0,0.00016438,2]
[351236495,1738465836302,-3561.73,0.00016438,2]
[351236496,1738465836312,-500.0,0.00016438,2]
[351236497,1738465836322,-500.0,0.00016438,2]
[351236498,1738465836332,-500.0,0.00016438,2]
[351236499,1738465836344,-502.68344302,0.00016438,2]
[351236500,1738465836354,-500.0,0.00016438,2]
[351236501,1738465836363,-503.67201098,0.00016438,2]
[351236502,1738465836373,-500.0,0.00016438,2]
[351236503,1738465836383,-500.0,0.00016438,2]
[351236504,1738465836393,-354.51161439,0.00016438,2]
[351236505,1738465836412,-145.48838561,0.00016438,2]
[351236506,1738465836422,-500.0,0.00016438,2]
[351236507,1738465836434,-500.0,0.00016438,2]
[351236508,1738465836453,-500.0,0.00016438,2]
[351236509,1738465836470,-274.01711965,0.00016438,2]
[351236510,1738465836481,-521.79402526,0.00016438,2]
[351236511,1738465836490,-503.12396351,0.00016438,2]
[351236512,1738465836500,-500.0,0.00016438,2]
[351236513,1738465836511,-500.0,0.00016438,2]
[351236514,1738465836521,-500.0,0.00016438,2]
[351236515,1738465836531,-500.0,0.00016438,2]
[351236516,1738465836541,-526.99103198,0.00016438,2]
[351236517,1738465836551,-518.01753633,0.00016438,2]
[351236518,1738465836561,-252.84548063,0.00016438,2]
[351236519,1738465836571,-500.0,0.00016438,2]
[351236520,1738465836581,-500.0,0.00016438,2]
[351236521,1738465836593,-503.31349601,0.00016438,2]
[351236522,1738465836603,-500.0,0.00016438,2]
[351236523,1738465836614,-500.0,0.00016438,2]
[351236524,1738465836624,-503.39112304,0.00016438,2]
[351236525,1738465836634,-1197.41,0.00016438,2]
[351236526,1738465836644,-500.0,0.00016438,2]
[351236527,1738465836654,-501.99855175,0.00016438,2]
[351236528,1738465836663,-500.0,0.00016438,2]
[351236529,1738465836674,-502.9781972,0.00016438,2]
[351236530,1738465836684,-511.24714355,0.00016438,2]
[351236531,1738465836694,-502.79368819,0.00016438,2]
[351236532,1738465836703,-1484.52,0.00016438,2]
[351236533,1738465836713,-354.77260133,0.00016438,2]
[351236534,1738465836722,-503.0189551,0.00016438,2]
[351236535,1738465836732,-501.77805312,0.00016438,2]
[351236536,1738465836741,-500.0,0.00016438,2]
[351236537,1738465836751,-500.0,0.00016438,2]
[351236538,1738465836760,-500.0,0.00016438,2]
[351236539,1738465836770,-506.22535487,0.00016438,2]
[351236540,1738465836780,-500.0,0.00016438,2]
[351236541,1738465836789,-159.6446754,0.00016438,2]
[351236542,1738465836799,-500.91094002,0.00016438,2]
[351236543,1738465836808,-503.52746898,0.00016438,2]
[351236544,1738465836819,-500.0,0.00016438,2]
[351236545,1738465836829,-501.45280668,0.00016438,2]
[351236546,1738465836841,-500.0,0.00016438,2]
[351236547,1738465836851,-3431.09,0.00016438,2]
[351236548,1738465836861,-500.0,0.00016438,2]
[351236549,1738465836871,-500.0,0.00016438,2]
[351236550,1738465836882,-500.0,0.00016438,2]
[351236551,1738465836892,-500.0,0.00016438,2]
[351236552,1738465836901,-500.0,0.00016438,2]
[351236553,1738465836911,-500.0,0.00016438,2]
[351236554,1738465836921,-500.0,0.00016438,2]
[351236555,1738465836932,-500.0,0.00016438,2]
[351236556,1738465836942,-503.56793399,0.00016438,2]
[351236557,1738465836951,-486.66321203,0.00016438,2]
[351236558,1738465836961,-500.0,0.00016438,2]
[351236559,1738465836971,-502.03757877,0.00016438,2]
[351236560,1738465836981,-500.0,0.00016438,2]
[351236561,1738465836991,-502.534027,0.00016438,2]
[351236562,1738465837001,-500.0,0.00016438,2]
[351236563,1738465837011,-500.0,0.00016438,2]
[351236564,1738465837021,-835.06,0.00016438,2]
[351236565,1738465837031,-500.0,0.00016438,2]